[Event "Late-Titled-Tuesday-Blitz-October-17-2023"]
[Site "Chess.com"]
[Date "2023.10.17"]
[Round "6"]
[White "Elsa167"]
[Black "Lennis93"]
[Result "0-1"]
[WhiteElo "2799"]
[BlackElo "2714"]
[TimeControl "180+1"]
[EndTime "15:04:58 PDT"]
[Termination "Lennis93 won by resignation"]

1. d4 {[%clk 0:03:00.9]} 1... Nf6 {[%clk 0:02:59.5]} 2. c4 {[%clk 0:03:01.5]}
2... e6 {[%clk 0:02:57.7]} 3. Nf3 {[%clk 0:03:01.6]} 3... d5 {[%clk 0:02:58.2]}
4. Nc3 {[%clk 0:03:02.2]} 4... c6 {[%clk 0:02:54.8]} 5. Bg5 {[%clk 0:03:02.2]}
5... Nbd7 {[%clk 0:02:52.9]} 6. cxd5 {[%clk 0:03:02.2]} 6... exd5 {[%clk
0:02:52.9]} 7. Qc2 {[%clk 0:03:02.8]} 7... h6 {[%clk 0:02:53.1]} 8. Bh4 {[%clk
0:03:03.2]} 8... g5 {[%clk 0:02:52]} 9. Bg3 {[%clk 0:03:03.7]} 9... Nh5 {[%clk
0:02:52.3]} 10. O-O-O {[%clk 0:03:04.3]} 10... Bg7 {[%clk 0:02:49.8]} 11. e4
{[%clk 0:03:01.6]} 11... Nxg3 {[%clk 0:02:48.9]} 12. hxg3 {[%clk 0:03:01.7]}
12... Nb6 {[%clk 0:02:47.2]} 13. Kb1 {[%clk 0:02:52.5]} 13... Be6 {[%clk
0:02:46.3]} 14. Bd3 {[%clk 0:02:52.1]} 14... g4 {[%clk 0:02:35.3]} 15. Ne5
{[%clk 0:02:32.8]} 15... Qg5 {[%clk 0:02:33.5]} 16. exd5 {[%clk 0:02:21.7]}
16... Nxd5 {[%clk 0:02:31.1]} 17. Ne4 {[%clk 0:02:22.2]} 17... Qe7 {[%clk
0:02:31.1]} 18. Nxc6 {[%clk 0:02:09.4]} 18... Qd7 {[%clk 0:02:30.6]} 19. Ne5
{[%clk 0:02:02.5]} 19... Qe7 {[%clk 0:02:08.5]} 20. Nc5 {[%clk 0:01:49.2]} 20...
O-O {[%clk 0:01:53]} 21. Nxe6 {[%clk 0:01:41.4]} 21... Qxe6 {[%clk 0:01:53.9]}
22. Bf5 {[%clk 0:01:28.1]} 22... Qa6 {[%clk 0:01:53.7]} 23. Bxg4 {[%clk
0:01:18.7]} 23... Nb4 {[%clk 0:01:51.9]} 24. Qb3 {[%clk 0:01:18.6]} 24... Bxe5
{[%clk 0:01:47.7]} 25. Qxb4 {[%clk 0:00:30]} 25... Qg6+ {[%clk 0:01:47]} 26. Ka1
{[%clk 0:00:30.3]} 26... Qxg4 {[%clk 0:01:47.6]} 27. Qxb7 {[%clk 0:00:24]} 27...
Bg7 {[%clk 0:01:46.1]} 28. Rd3 {[%clk 0:00:20.6]} 28... Rab8 {[%clk 0:01:43.7]}
29. Qf3 {[%clk 0:00:18.9]} 29... Qxf3 {[%clk 0:01:41]} 30. gxf3 {[%clk
0:00:19.8]} 30... Rfd8 {[%clk 0:01:40.8]} 31. Kb1 {[%clk 0:00:14.5]} 31... Bxd4
{[%clk 0:01:33.6]} 32. Rhd1 {[%clk 0:00:12.1]} 32... Rxb2+ {[%clk 0:01:33]} 33.
Kc1 {[%clk 0:00:12.1]} 33... Rc8+ {[%clk 0:01:30.6]} 34. Rc3 {[%clk 0:00:12]}
34... Bxc3 {[%clk 0:01:30.8]} 0-1

[Event "Late-Titled-Tuesday-Blitz-October-17-2023"]
[Site "Chess.com"]
[Date "2023.10.17"]
[Round "6"]
[White "becemix"]
[Black "Yushko_Olga"]
[Result "0-1"]
[WhiteElo "2449"]
[BlackElo "2179"]
[TimeControl "180+1"]
[EndTime "15:05:00 PDT"]
[Termination "Yushko_Olga won by checkmate"]

1. d4 {[%clk 0:03:00.9]} 1... e6 {[%clk 0:02:58.8]} 2. Nc3 {[%clk 0:02:59.5]}
2... f5 {[%clk 0:02:59.4]} 3. Nf3 {[%clk 0:02:59.9]} 3... Nf6 {[%clk 0:02:59.3]}
4. Bf4 {[%clk 0:03:00.4]} 4... d6 {[%clk 0:02:59.4]} 5. e3 {[%clk 0:02:57.1]}
5... Be7 {[%clk 0:02:59.9]} 6. Bd3 {[%clk 0:02:57.6]} 6... O-O {[%clk
0:03:00.5]} 7. O-O {[%clk 0:02:58.2]} 7... Nc6 {[%clk 0:02:59.6]} 8. e4 {[%clk
0:02:57.5]} 8... Nxe4 {[%clk 0:02:59]} 9. Re1 {[%clk 0:02:52.8]} 9... Nxc3
{[%clk 0:02:57.8]} 10. bxc3 {[%clk 0:02:52.5]} 10... Qe8 {[%clk 0:02:57.7]} 11.
Bc4 {[%clk 0:02:36.9]} 11... Qg6 {[%clk 0:02:54.7]} 12. Qe2 {[%clk 0:02:17.6]}
12... d5 {[%clk 0:02:32.2]} 13. Bb5 {[%clk 0:02:16.4]} 13... Bd7 {[%clk
0:02:27]} 14. Bxc7 {[%clk 0:02:12.2]} 14... Rac8 {[%clk 0:02:25.7]} 15. Bf4
{[%clk 0:01:55.5]} 15... a6 {[%clk 0:02:25]} 16. Bd3 {[%clk 0:01:49.7]} 16...
Na5 {[%clk 0:02:22.9]} 17. Ne5 {[%clk 0:01:48.5]} 17... Qe8 {[%clk 0:02:17.4]}
18. Nxd7 {[%clk 0:01:48.7]} 18... Qxd7 {[%clk 0:02:18.3]} 19. Qxe6+ {[%clk
0:01:49.2]} 19... Qxe6 {[%clk 0:02:18.3]} 20. Rxe6 {[%clk 0:01:50.1]} 20... Ba3
{[%clk 0:02:16.9]} 21. Rb1 {[%clk 0:01:32.3]} 21... Rxc3 {[%clk 0:02:11.4]} 22.
Bd6 {[%clk 0:01:28.5]} 22... Bxd6 {[%clk 0:02:09.9]} 23. Rxd6 {[%clk 0:01:29.4]}
23... Nc4 {[%clk 0:02:03.1]} 24. Rxb7 {[%clk 0:01:23]} 24... Re8 {[%clk
0:02:00.7]} 25. Rxd5 {[%clk 0:01:06]} 25... Nd2 {[%clk 0:01:54.4]} 26. Re5
{[%clk 0:00:56.9]} 26... Rec8 {[%clk 0:01:51.1]} 27. Ree7 {[%clk 0:00:53.2]}
27... Rxd3 {[%clk 0:01:48.1]} 28. Rxg7+ {[%clk 0:00:51.3]} 28... Kf8 {[%clk
0:01:48.6]} 29. Rxh7 {[%clk 0:00:43.8]} 29... Kg8 {[%clk 0:01:39.6]} 30. Rbg7+
{[%clk 0:00:43.1]} 30... Kf8 {[%clk 0:01:39.5]} 31. Rf7+ {[%clk 0:00:35.6]}
31... Kg8 {[%clk 0:01:38.7]} 32. Rfg7+ {[%clk 0:00:35]} 32... Kf8 {[%clk
0:01:38.7]} 33. h4 {[%clk 0:00:31.3]} 33... Rxc2 {[%clk 0:01:36]} 34. Rf7+
{[%clk 0:00:30.5]} 34... Kg8 {[%clk 0:01:35.7]} 35. Rhg7+ {[%clk 0:00:30.9]}
35... Kh8 {[%clk 0:01:35.6]} 36. Rh7+ {[%clk 0:00:31.3]} 36... Kg8 {[%clk
0:01:35.6]} 37. Rfg7+ {[%clk 0:00:32]} 37... Kf8 {[%clk 0:01:35.8]} 38. Rd7
{[%clk 0:00:32.5]} 38... Rc1+ {[%clk 0:01:32]} 39. Kh2 {[%clk 0:00:33.1]} 39...
Nf1+ {[%clk 0:01:32.1]} 40. Kg1 {[%clk 0:00:31]} 40... Ng3+ {[%clk 0:01:31.6]}
41. Kh2 {[%clk 0:00:31.3]} 41... Rh1# {[%clk 0:01:32]} 0-1

[Event "Late-Titled-Tuesday-Blitz-October-17-2023"]
[Site "Chess.com"]
[Date "2023.10.17"]
[Round "6"]
[White "sorch29"]
[Black "azikom"]
[Result "0-1"]
[WhiteElo "2391"]
[BlackElo "2604"]
[TimeControl "180+1"]
[EndTime "15:05:03 PDT"]
[Termination "azikom won by resignation"]

1. c4 {[%clk 0:03:00.9]} 1... c6 {[%clk 0:03:00.9]} 2. Nf3 {[%clk 0:03:00]} 2...
d5 {[%clk 0:02:56]} 3. e3 {[%clk 0:02:58.6]} 3... Nf6 {[%clk 0:02:55.5]} 4. Nc3
{[%clk 0:02:59.1]} 4... e6 {[%clk 0:02:55.4]} 5. b3 {[%clk 0:02:58.6]} 5... Nbd7
{[%clk 0:02:55.8]} 6. Bb2 {[%clk 0:02:58.9]} 6... Bd6 {[%clk 0:02:56.4]} 7. Qc2
{[%clk 0:02:59.1]} 7... O-O {[%clk 0:02:56.4]} 8. Be2 {[%clk 0:02:58.1]} 8...
Re8 {[%clk 0:02:51.9]} 9. d4 {[%clk 0:02:55.2]} 9... a6 {[%clk 0:02:51.1]} 10.
O-O {[%clk 0:02:54.6]} 10... b5 {[%clk 0:02:46.9]} 11. e4 {[%clk 0:02:33.9]}
11... b4 {[%clk 0:02:44.9]} 12. e5 {[%clk 0:02:33.5]} 12... bxc3 {[%clk
0:02:43]} 13. Bxc3 {[%clk 0:02:30.3]} 13... Be7 {[%clk 0:02:33.5]} 14. exf6
{[%clk 0:02:29.9]} 14... Bxf6 {[%clk 0:02:32.9]} 15. Bd3 {[%clk 0:02:26.5]}
15... h6 {[%clk 0:02:32.3]} 16. Rfe1 {[%clk 0:02:23.1]} 16... a5 {[%clk
0:02:31.6]} 17. a4 {[%clk 0:02:16.3]} 17... Ba6 {[%clk 0:02:31.3]} 18. Qd2
{[%clk 0:02:14.3]} 18... Bb7 {[%clk 0:02:23]} 19. h3 {[%clk 0:02:02.9]} 19... c5
{[%clk 0:02:22.5]} 20. Ne5 {[%clk 0:01:47.5]} 20... cxd4 {[%clk 0:02:11.4]} 21.
Bxd4 {[%clk 0:01:42.2]} 21... dxc4 {[%clk 0:02:07]} 22. bxc4 {[%clk 0:01:36.6]}
22... Nxe5 {[%clk 0:01:56.7]} 23. Bxe5 {[%clk 0:01:37.5]} 23... Bxe5 {[%clk
0:01:42.2]} 24. Rxe5 {[%clk 0:01:37.6]} 24... Qf6 {[%clk 0:01:42.5]} 25. Rae1
{[%clk 0:01:29.5]} 25... Red8 {[%clk 0:01:41.3]} 26. Qe3 {[%clk 0:01:22]} 26...
Bc6 {[%clk 0:01:38.9]} 27. Bf1 {[%clk 0:01:16.2]} 27... Bxa4 {[%clk 0:01:35.6]}
28. Ra1 {[%clk 0:01:14.1]} 28... Bc6 {[%clk 0:01:28.8]} 29. Raxa5 {[%clk
0:01:14.5]} 29... Rxa5 {[%clk 0:01:27.6]} 30. Rxa5 {[%clk 0:01:15.4]} 30... Rd1
{[%clk 0:01:27.6]} 31. f3 {[%clk 0:01:02.2]} 31... Qb2 {[%clk 0:01:19.2]} 32.
Ra3 {[%clk 0:00:40.6]} 32... Qb1 {[%clk 0:01:04.3]} 33. Rd3 {[%clk 0:00:37.1]}
33... Rxf1+ {[%clk 0:01:03.1]} 0-1

[Event "Late-Titled-Tuesday-Blitz-October-17-2023"]
[Site "Chess.com"]
[Date "2023.10.17"]
[Round "6"]
[White "Alphafischer2019"]
[Black "SEBAZZANO"]
[Result "1-0"]
[WhiteElo "2571"]
[BlackElo "2273"]
[TimeControl "180+1"]
[EndTime "15:05:17 PDT"]
[Termination "Alphafischer2019 won on time"]

1. Nf3 {[%clk 0:03:00.9]} 1... Nf6 {[%clk 0:02:59.8]} 2. g3 {[%clk 0:03:00.8]}
2... g6 {[%clk 0:02:59.4]} 3. Bg2 {[%clk 0:03:01.5]} 3... Bg7 {[%clk 0:02:59.3]}
4. O-O {[%clk 0:03:02.1]} 4... O-O {[%clk 0:03:00.2]} 5. d4 {[%clk 0:03:02.4]}
5... c5 {[%clk 0:02:58.9]} 6. d5 {[%clk 0:02:57.5]} 6... d6 {[%clk 0:02:53.2]}
7. Nc3 {[%clk 0:02:56.8]} 7... e6 {[%clk 0:02:51.8]} 8. e4 {[%clk 0:02:56.7]}
8... exd5 {[%clk 0:02:51.6]} 9. exd5 {[%clk 0:02:57]} 9... Re8 {[%clk
0:02:45.6]} 10. Nd2 {[%clk 0:02:56.1]} 10... Nbd7 {[%clk 0:02:43.8]} 11. Nc4
{[%clk 0:02:54.4]} 11... Ne5 {[%clk 0:02:43.2]} 12. Nxe5 {[%clk 0:02:54.6]}
12... Rxe5 {[%clk 0:02:41.3]} 13. Bf4 {[%clk 0:02:54.2]} 13... Re8 {[%clk
0:02:27]} 14. Re1 {[%clk 0:02:45.7]} 14... Rxe1+ {[%clk 0:02:12.5]} 15. Qxe1
{[%clk 0:02:45.7]} 15... Bf5 {[%clk 0:02:09.6]} 16. Qd2 {[%clk 0:02:45.6]} 16...
a6 {[%clk 0:02:08.4]} 17. a4 {[%clk 0:02:45.1]} 17... Qb6 {[%clk 0:01:59.5]} 18.
Ra2 {[%clk 0:02:34.2]} 18... Re8 {[%clk 0:01:55.9]} 19. h3 {[%clk 0:02:24.4]}
19... Ne4 {[%clk 0:01:48.2]} 20. Nxe4 {[%clk 0:02:18.7]} 20... Bxe4 {[%clk
0:01:49.1]} 21. Qe2 {[%clk 0:01:57.9]} 21... Kf8 {[%clk 0:00:58.4]} 22. Bxe4
{[%clk 0:01:57.1]} 22... f5 {[%clk 0:00:58.3]} 23. f3 {[%clk 0:01:54]} 23...
fxe4 {[%clk 0:00:53]} 24. fxe4 {[%clk 0:01:53.7]} 24... Bxb2 {[%clk 0:00:47.1]}
25. c4 {[%clk 0:01:42.7]} 25... Bd4+ {[%clk 0:00:36.9]} 26. Kg2 {[%clk
0:01:39.8]} 26... Be5 {[%clk 0:00:29.6]} 27. Bxe5 {[%clk 0:01:30.6]} 27... dxe5
{[%clk 0:00:09]} 28. Qf3+ {[%clk 0:01:27.5]} 28... Kg8 {[%clk 0:00:06.9]} 29.
Rf2 {[%clk 0:01:28.1]} 29... Qd8 {[%clk 0:00:06.6]} 30. Qf7+ {[%clk 0:01:27.1]}
30... Kh8 {[%clk 0:00:06.6]} 31. Qxb7 {[%clk 0:01:27.7]} 31... Qc8 {[%clk
0:00:01.8]} 32. Qxc8 {[%clk 0:01:24.7]} 32... Rxc8 {[%clk 0:00:01.7]} 33. Rb2
{[%clk 0:01:25.3]} 1-0

[Event "Late-Titled-Tuesday-Blitz-October-17-2023"]
[Site "Chess.com"]
[Date "2023.10.17"]
[Round "6"]
[White "elprimo2012mortis"]
[Black "Zq1"]
[Result "0-1"]
[WhiteElo "2703"]
[BlackElo "2553"]
[TimeControl "180+1"]
[EndTime "15:05:18 PDT"]
[Termination "Zq1 won on time"]

1. e4 {[%clk 0:02:58.1]} 1... c5 {[%clk 0:02:59.4]} 2. Nf3 {[%clk 0:02:58]} 2...
d6 {[%clk 0:02:59.6]} 3. d4 {[%clk 0:02:57.6]} 3... cxd4 {[%clk 0:02:59.7]} 4.
Nxd4 {[%clk 0:02:58.5]} 4... Nf6 {[%clk 0:02:59.6]} 5. Nc3 {[%clk 0:02:58.5]}
5... Nc6 {[%clk 0:02:59.7]} 6. Bg5 {[%clk 0:02:54.9]} 6... e6 {[%clk 0:02:59.3]}
7. Qd3 {[%clk 0:02:45.7]} 7... Be7 {[%clk 0:02:58.5]} 8. f4 {[%clk 0:02:43.7]}
8... O-O {[%clk 0:02:53.4]} 9. O-O-O {[%clk 0:02:41.4]} 9... Nxd4 {[%clk
0:02:53]} 10. Qxd4 {[%clk 0:02:41]} 10... h6 {[%clk 0:02:53.1]} 11. Bh4 {[%clk
0:02:37.3]} 11... Qa5 {[%clk 0:02:40.8]} 12. e5 {[%clk 0:02:36.4]} 12... dxe5
{[%clk 0:02:39.4]} 13. Qxe5 {[%clk 0:02:13.9]} 13... Qxe5 {[%clk 0:02:38.1]} 14.
fxe5 {[%clk 0:02:14.8]} 14... Nd5 {[%clk 0:02:38.2]} 15. Bxe7 {[%clk 0:02:12.7]}
15... Nxe7 {[%clk 0:02:38.2]} 16. g3 {[%clk 0:01:38.3]} 16... Nc6 {[%clk
0:02:36.8]} 17. Re1 {[%clk 0:01:37.5]} 17... Rd8 {[%clk 0:02:29.8]} 18. Bg2
{[%clk 0:01:37.2]} 18... Bd7 {[%clk 0:02:29.9]} 19. Re3 {[%clk 0:01:28.6]} 19...
Be8 {[%clk 0:02:27]} 20. h4 {[%clk 0:01:13.2]} 20... Rac8 {[%clk 0:02:25.7]} 21.
g4 {[%clk 0:01:12]} 21... Rd4 {[%clk 0:02:20.1]} 22. g5 {[%clk 0:01:10.3]} 22...
hxg5 {[%clk 0:02:06.4]} 23. hxg5 {[%clk 0:01:09.9]} 23... Rg4 {[%clk 0:02:06.5]}
24. Reh3 {[%clk 0:00:35.1]} 24... Kf8 {[%clk 0:02:06.5]} 25. Bf3 {[%clk
0:00:17.1]} 25... Rxg5 {[%clk 0:02:03.6]} 26. Ne4 {[%clk 0:00:17.5]} 26... Rxe5
{[%clk 0:01:59]} 27. Nd6 {[%clk 0:00:14.4]} 27... Rb8 {[%clk 0:01:54.2]} 28. Rd1
{[%clk 0:00:05.9]} 28... Ke7 {[%clk 0:01:52.1]} 29. Rh8 {[%clk 0:00:05.7]} 29...
Rd8 {[%clk 0:01:43.3]} 30. Nxb7 {[%clk 0:00:02.5]} 30... Rxd1+ {[%clk
0:01:42.8]} 31. Bxd1 {[%clk 0:00:03.4]} 31... Nd4 {[%clk 0:01:38.6]} 32. c3
{[%clk 0:00:03.2]} 32... Ne2+ {[%clk 0:01:30.9]} 33. Kd2 {[%clk 0:00:02.3]}
33... Ng3 {[%clk 0:01:27.1]} 34. Rg8 {[%clk 0:00:02.3]} 34... g5 {[%clk
0:01:24.6]} 35. Bc2 {[%clk 0:00:01.1]} 35... Bc6 {[%clk 0:01:18.8]} 0-1

[Event "Late-Titled-Tuesday-Blitz-October-17-2023"]
[Site "Chess.com"]
[Date "2023.10.17"]
[Round "6"]
[White "vidavi"]
[Black "GoltsevDmitry2000"]
[Result "0-1"]
[WhiteElo "2398"]
[BlackElo "2649"]
[TimeControl "180+1"]
[EndTime "15:05:20 PDT"]
[Termination "GoltsevDmitry2000 won by resignation"]

1. e4 {[%clk 0:03:00.9]} 1... e6 {[%clk 0:03:00.1]} 2. Qe2 {[%clk 0:02:59.8]}
2... d5 {[%clk 0:03:01]} 3. exd5 {[%clk 0:02:59.8]} 3... Qxd5 {[%clk 0:03:01.9]}
4. Nc3 {[%clk 0:03:00]} 4... Qd8 {[%clk 0:03:01.8]} 5. Nf3 {[%clk 0:02:58.2]}
5... Nc6 {[%clk 0:03:02.1]} 6. g3 {[%clk 0:02:56.9]} 6... Nf6 {[%clk 0:03:02.6]}
7. Bg2 {[%clk 0:02:57]} 7... Bc5 {[%clk 0:03:01.8]} 8. O-O {[%clk 0:02:56.7]}
8... O-O {[%clk 0:03:01.4]} 9. d3 {[%clk 0:02:56.3]} 9... e5 {[%clk 0:03:00.2]}
10. Bg5 {[%clk 0:02:50.8]} 10... Bg4 {[%clk 0:02:59]} 11. h3 {[%clk 0:02:40.5]}
11... Nd4 {[%clk 0:02:58.9]} 12. Nxd4 {[%clk 0:02:22.6]} 12... Bxe2 {[%clk
0:02:58.4]} 13. Ndxe2 {[%clk 0:02:23.5]} 13... h6 {[%clk 0:02:57.2]} 14. Bxf6
{[%clk 0:02:21.7]} 14... Qxf6 {[%clk 0:02:58.1]} 15. Bxb7 {[%clk 0:02:12.6]}
15... Rab8 {[%clk 0:02:57.1]} 16. Bd5 {[%clk 0:02:03]} 16... c6 {[%clk 0:02:56]}
17. Bb3 {[%clk 0:01:57.2]} 17... Qf3 {[%clk 0:02:47.9]} 18. Ne4 {[%clk
0:01:49.5]} 18... Bb6 {[%clk 0:02:40.4]} 19. Rae1 {[%clk 0:01:41]} 19... Kh8
{[%clk 0:02:37.2]} 20. Nd2 {[%clk 0:01:37.5]} 20... Qf6 {[%clk 0:02:29.5]} 21.
Kg2 {[%clk 0:01:33.5]} 21... Rbd8 {[%clk 0:02:26]} 22. Nc4 {[%clk 0:01:31.4]}
22... Bc7 {[%clk 0:02:19.6]} 23. Nc3 {[%clk 0:01:31]} 23... Qe7 {[%clk 0:02:17]}
24. Ne3 {[%clk 0:01:30]} 24... f5 {[%clk 0:02:16.6]} 25. Nc4 {[%clk 0:01:26.4]}
25... f4 {[%clk 0:02:14]} 26. Ne4 {[%clk 0:01:23.1]} 26... f3+ {[%clk
0:02:12.1]} 27. Kh2 {[%clk 0:01:23.3]} 27... Rf5 {[%clk 0:02:02.2]} 28. Ne3
{[%clk 0:01:08.5]} 28... Rff8 {[%clk 0:01:46.5]} 29. Rg1 {[%clk 0:01:04.3]}
29... Bb6 {[%clk 0:01:45.4]} 30. g4 {[%clk 0:00:58.8]} 30... g6 {[%clk 0:01:36]}
31. Rg3 {[%clk 0:00:57.7]} 31... Rf4 {[%clk 0:01:33.7]} 32. Nf1 {[%clk
0:00:54.5]} 32... Rdf8 {[%clk 0:01:29.1]} 33. g5 {[%clk 0:00:46.4]} 33... h5
{[%clk 0:01:25.5]} 34. Nfd2 {[%clk 0:00:39.8]} 34... Bd4 {[%clk 0:01:18.1]} 35.
c3 {[%clk 0:00:37.1]} 35... Bb6 {[%clk 0:01:18.1]} 36. a4 {[%clk 0:00:33.9]}
36... a5 {[%clk 0:01:17.6]} 37. Nc4 {[%clk 0:00:31.9]} 37... Rxe4 {[%clk
0:01:15.1]} 38. Rxe4 {[%clk 0:00:28.4]} 38... Bxf2 {[%clk 0:01:15.5]} 39. Nxe5
{[%clk 0:00:27]} 39... Bxg3+ {[%clk 0:01:14.8]} 40. Kxg3 {[%clk 0:00:27.9]}
40... Qxg5+ {[%clk 0:01:12.6]} 0-1

[Event "Late-Titled-Tuesday-Blitz-October-17-2023"]
[Site "Chess.com"]
[Date "2023.10.17"]
[Round "6"]
[White "WPWPWP-2015"]
[Black "kiwibobo"]
[Result "1-0"]
[WhiteElo "2575"]
[BlackElo "2312"]
[TimeControl "180+1"]
[EndTime "15:05:24 PDT"]
[Termination "WPWPWP-2015 won by checkmate"]

1. e4 {[%clk 0:03:00.9]} 1... e5 {[%clk 0:03:00.1]} 2. Nf3 {[%clk 0:03:00.3]}
2... Nc6 {[%clk 0:03:00.8]} 3. Bb5 {[%clk 0:03:00.3]} 3... a6 {[%clk 0:03:01.1]}
4. Ba4 {[%clk 0:03:00.6]} 4... Nf6 {[%clk 0:03:01.4]} 5. O-O {[%clk 0:03:00.6]}
5... b5 {[%clk 0:03:02.2]} 6. Bb3 {[%clk 0:03:00.1]} 6... Bc5 {[%clk 0:03:02.9]}
7. Re1 {[%clk 0:02:58.1]} 7... O-O {[%clk 0:03:02.5]} 8. h3 {[%clk 0:02:57.5]}
8... h6 {[%clk 0:03:01.7]} 9. d3 {[%clk 0:02:56.9]} 9... d6 {[%clk 0:03:00.9]}
10. Nbd2 {[%clk 0:02:56.2]} 10... Na5 {[%clk 0:02:37.8]} 11. Nf1 {[%clk
0:02:55.6]} 11... Nxb3 {[%clk 0:02:36.5]} 12. axb3 {[%clk 0:02:56.5]} 12... c6
{[%clk 0:02:29.9]} 13. Ng3 {[%clk 0:02:53.1]} 13... Re8 {[%clk 0:02:28.4]} 14.
Bd2 {[%clk 0:02:50.7]} 14... Be6 {[%clk 0:02:17.1]} 15. b4 {[%clk 0:02:47.5]}
15... Bb6 {[%clk 0:02:16.9]} 16. Qc1 {[%clk 0:02:46.8]} 16... Kh7 {[%clk
0:02:14.1]} 17. Nh4 {[%clk 0:02:44.1]} 17... Ng4 {[%clk 0:02:05.4]} 18. hxg4
{[%clk 0:02:27.7]} 18... Qxh4 {[%clk 0:02:04.8]} 19. Be3 {[%clk 0:02:27.5]}
19... Bxe3 {[%clk 0:02:00.1]} 20. Qxe3 {[%clk 0:02:26.4]} 20... Qxg4 {[%clk
0:01:52.9]} 21. Qb6 {[%clk 0:02:19.4]} 21... h5 {[%clk 0:01:42.2]} 22. Re3
{[%clk 0:02:16.2]} 22... g6 {[%clk 0:00:59.4]} 23. Rxa6 {[%clk 0:02:14.2]} 23...
Rac8 {[%clk 0:00:55.4]} 24. Ra7 {[%clk 0:02:09.2]} 24... Qd1+ {[%clk 0:00:45.5]}
25. Kh2 {[%clk 0:02:08]} 25... Qxc2 {[%clk 0:00:39]} 26. Rf3 {[%clk 0:02:06.6]}
26... h4 {[%clk 0:00:30]} 27. Nf1 {[%clk 0:01:50.4]} 27... Kg7 {[%clk
0:00:24.9]} 28. Qb7 {[%clk 0:01:44.6]} 28... Rf8 {[%clk 0:00:23.5]} 29. Qe7
{[%clk 0:01:43.1]} 29... Qe2 {[%clk 0:00:20.3]} 30. Qxe6 {[%clk 0:01:18.7]}
30... Qxf1 {[%clk 0:00:11.8]} 31. Rfxf7+ {[%clk 0:01:17.1]} 31... Kh6 {[%clk
0:00:10.2]} 32. Qg4 {[%clk 0:01:07.5]} 32... Rxf7 {[%clk 0:00:08.5]} 33. Rxf7
{[%clk 0:01:05.3]} 33... g5 {[%clk 0:00:05.7]} 34. Qe6+ {[%clk 0:01:03.8]} 34...
Kh5 {[%clk 0:00:04.8]} 35. Rh7# {[%clk 0:01:04.5]} 1-0

[Event "Late-Titled-Tuesday-Blitz-October-17-2023"]
[Site "Chess.com"]
[Date "2023.10.17"]
[Round "6"]
[White "Langua_Chess"]
[Black "nicholas_ilic"]
[Result "1-0"]
[WhiteElo "2486"]
[BlackElo "2339"]
[TimeControl "180+1"]
[EndTime "15:05:25 PDT"]
[Termination "Langua_Chess won on time"]

1. e4 {[%clk 0:03:00.9]} 1... c5 {[%clk 0:02:58.6]} 2. Nf3 {[%clk 0:03:01.6]}
2... Nc6 {[%clk 0:02:58.4]} 3. d4 {[%clk 0:03:02.2]} 3... cxd4 {[%clk
0:02:59.1]} 4. Nxd4 {[%clk 0:03:02.5]} 4... g6 {[%clk 0:03:00]} 5. c4 {[%clk
0:03:02.3]} 5... Bg7 {[%clk 0:02:59.9]} 6. Be3 {[%clk 0:03:02.8]} 6... Nf6
{[%clk 0:02:59.8]} 7. Nc3 {[%clk 0:03:03.4]} 7... Ng4 {[%clk 0:02:59.4]} 8. Qxg4
{[%clk 0:03:02.4]} 8... Nxd4 {[%clk 0:02:59.1]} 9. Qd1 {[%clk 0:03:03.1]} 9...
e5 {[%clk 0:02:58.9]} 10. Bd3 {[%clk 0:02:27.8]} 10... O-O {[%clk 0:02:57.4]}
11. O-O {[%clk 0:02:27.5]} 11... d6 {[%clk 0:02:55.1]} 12. Qd2 {[%clk
0:02:26.7]} 12... f5 {[%clk 0:02:52.1]} 13. exf5 {[%clk 0:02:24.3]} 13... gxf5
{[%clk 0:02:49]} 14. Bxd4 {[%clk 0:02:22.6]} 14... exd4 {[%clk 0:02:48.2]} 15.
Ne2 {[%clk 0:02:23.5]} 15... f4 {[%clk 0:02:35.7]} 16. Be4 {[%clk 0:02:20.4]}
16... Qf6 {[%clk 0:02:29.2]} 17. Rad1 {[%clk 0:02:17.4]} 17... Bg4 {[%clk
0:02:21.6]} 18. f3 {[%clk 0:02:15.1]} 18... Bf5 {[%clk 0:02:21.1]} 19. Qxf4
{[%clk 0:02:10.4]} 19... Bxe4 {[%clk 0:02:06]} 20. Qxe4 {[%clk 0:02:08.1]} 20...
Rae8 {[%clk 0:01:48.9]} 21. Qd5+ {[%clk 0:02:08.1]} 21... Kh8 {[%clk 0:01:49.3]}
22. Nxd4 {[%clk 0:02:02.5]} 22... Re5 {[%clk 0:01:48.6]} 23. Qxb7 {[%clk
0:02:00.2]} 23... Rfe8 {[%clk 0:01:45.4]} 24. Nb5 {[%clk 0:01:54.9]} 24... Re2
{[%clk 0:01:25.3]} 25. Nxd6 {[%clk 0:01:52.2]} 25... Qg6 {[%clk 0:01:18.7]} 26.
f4 {[%clk 0:01:52.2]} 26... Rf8 {[%clk 0:00:21.2]} 27. Qd5 {[%clk 0:01:47.4]}
27... Rxb2 {[%clk 0:00:17.6]} 28. f5 {[%clk 0:01:40.2]} 28... Qf6 {[%clk
0:00:15]} 29. c5 {[%clk 0:01:37.9]} 29... Rxa2 {[%clk 0:00:14.5]} 30. Qxa2
{[%clk 0:01:34.1]} 30... Qg5 {[%clk 0:00:12]} 31. Nf7+ {[%clk 0:01:19.9]} 31...
Rxf7 {[%clk 0:00:04.3]} 32. Qxf7 {[%clk 0:01:20.8]} 32... Qf6 {[%clk 0:00:02.8]}
33. Qxf6 {[%clk 0:01:19.1]} 33... Bxf6 {[%clk 0:00:02.2]} 34. Rfe1 {[%clk
0:01:20]} 34... Kg7 {[%clk 0:00:02.1]} 35. c6 {[%clk 0:01:20.7]} 35... Kh6
{[%clk 0:00:03]} 36. c7 {[%clk 0:01:21.2]} 1-0

[Event "Late-Titled-Tuesday-Blitz-October-17-2023"]
[Site "Chess.com"]
[Date "2023.10.17"]
[Round "6"]
[White "GiorgianBarbosa"]
[Black "jaskol95"]
[Result "0-1"]
[WhiteElo "2375"]
[BlackElo "2578"]
[TimeControl "180+1"]
[EndTime "15:05:30 PDT"]
[Termination "jaskol95 won on time"]

1. d4 {[%clk 0:02:59]} 1... d5 {[%clk 0:03:00]} 2. Nf3 {[%clk 0:02:59.9]} 2...
c5 {[%clk 0:02:57.5]} 3. e3 {[%clk 0:02:29.2]} 3... Nc6 {[%clk 0:02:51.2]} 4. a3
{[%clk 0:02:26]} 4... e6 {[%clk 0:02:50.2]} 5. Be2 {[%clk 0:02:25.2]} 5... Nf6
{[%clk 0:02:50]} 6. O-O {[%clk 0:02:24.4]} 6... cxd4 {[%clk 0:02:48.1]} 7. exd4
{[%clk 0:02:22.6]} 7... Be7 {[%clk 0:02:48.5]} 8. c4 {[%clk 0:02:21.8]} 8...
dxc4 {[%clk 0:02:46.8]} 9. Bxc4 {[%clk 0:02:22.7]} 9... O-O {[%clk 0:02:43.2]}
10. Nc3 {[%clk 0:02:23.1]} 10... Nd5 {[%clk 0:02:30.3]} 11. Bxd5 {[%clk
0:02:11.9]} 11... exd5 {[%clk 0:02:29.6]} 12. h3 {[%clk 0:02:07]} 12... Bf5
{[%clk 0:02:24.3]} 13. Re1 {[%clk 0:02:02]} 13... Bf6 {[%clk 0:02:18.7]} 14. Ne5
{[%clk 0:02:00.4]} 14... Re8 {[%clk 0:02:12.4]} 15. Bf4 {[%clk 0:01:49.7]} 15...
Rc8 {[%clk 0:01:55.6]} 16. Qd2 {[%clk 0:01:41.9]} 16... Na5 {[%clk 0:01:47.4]}
17. Re3 {[%clk 0:01:18.4]} 17... Nb3 {[%clk 0:01:41.3]} 18. Qe1 {[%clk
0:01:09.9]} 18... Nxd4 {[%clk 0:01:25]} 19. g4 {[%clk 0:00:28.4]} 19... Nc2
{[%clk 0:01:20.2]} 20. Qd2 {[%clk 0:00:23.9]} 20... Nxe3 {[%clk 0:01:15.8]} 21.
Qxe3 {[%clk 0:00:20.1]} 21... d4 {[%clk 0:01:10.7]} 22. Qg3 {[%clk 0:00:20.5]}
22... dxc3 {[%clk 0:01:08.6]} 23. gxf5 {[%clk 0:00:21.4]} 23... cxb2 {[%clk
0:01:06.6]} 24. Rb1 {[%clk 0:00:21.7]} 24... Bxe5 {[%clk 0:01:00.7]} 25. Bxe5
{[%clk 0:00:22.6]} 25... Rc1+ {[%clk 0:00:58]} 26. Kh2 {[%clk 0:00:07]} 26...
Rxe5 {[%clk 0:00:56.9]} 27. Rxb2 {[%clk 0:00:02.8]} 27... Ree1 {[%clk
0:00:54.5]} 0-1